fUST/lending_fUST_20240915
["ID","MTS","AMOUNT","RATE_DAILY","PERIOD"]
[338226972,1726396040518,-500.0,0.00027397,5]
[338226973,1726396040541,-500.0,0.00027397,5]
[338226974,1726396040567,-500.0,0.00027397,5]
[338226975,1726396040590,-500.0,0.00027397,5]
[338226976,1726396040612,-500.0,0.00027397,5]
[338226977,1726396040635,-500.0,0.00027397,5]
[338226978,1726396040657,-538.605515,0.00027397,5]
[338226979,1726396040680,-500.0,0.00027397,5]
[338226980,1726396040703,-503.85084491,0.00027397,5]
[338226981,1726396040724,-500.0,0.00027397,5]
[338226982,1726396040752,-500.0,0.00027397,5]
[338226983,1726396040777,-1614.51,0.00027397,5]
[338226984,1726396040800,-600.0,0.00027397,3]
[338226985,1726396040823,-500.0,0.00027397,5]
[338226986,1726396040845,-500.0,0.00027397,5]
[338226987,1726396040869,-500.0,0.00027397,5]
[338226988,1726396040892,-989.63,0.00027397,5]
[338226989,1726396040917,-500.0,0.00027397,5]
[338226990,1726396040940,-500.0,0.00027397,5]
[338226991,1726396040962,-633.06,0.00027397,5]
[338226992,1726396040986,-739.25,0.00027397,5]
[338226993,1726396041008,-500.0,0.00027397,5]
[338226994,1726396041030,-500.0,0.00027397,5]
[338226995,1726396041054,-500.49680411,0.00027397,5]
[338226996,1726396041077,-500.0,0.00027397,5]
[338226997,1726396041100,-500.0,0.00027397,5]
[338226998,1726396041121,-500.0,0.00027397,5]
[338226999,1726396041144,-500.0,0.00027397,5]
[338227000,1726396041166,-500.0,0.00027397,5]
[338227001,1726396041189,-500.0,0.00027397,5]
[338227002,1726396041214,-1358.3,0.00027397,5]
[338227003,1726396041237,-500.0,0.00027397,5]
[338227004,1726396041264,-649.17,0.00027397,5]
[338227005,1726396041293,-500.0,0.00027397,5]
[338227006,1726396041316,-1180.33,0.00027397,5]
[338227007,1726396041342,-500.0,0.00027397,5]
[338227008,1726396041365,-500.0,0.00027397,5]
[338227009,1726396041388,-1709.12,0.00027397,2]
[338227010,1726396041411,-500.0,0.00027397,5]
[338227011,1726396041435,-500.0,0.00027397,5]
[338227012,1726396041463,-500.0,0.00027397,5]
[338227013,1726396041486,-1001.58429669,0.00027397,2]
[338227014,1726396041510,-501.86708346,0.00027397,5]
[338227015,1726396041532,-500.0,0.00027397,5]
[338227016,1726396041556,-1514.36,0.00027397,5]
[338227017,1726396041581,-500.0,0.00027397,5]
[338227018,1726396041604,-500.0,0.00027397,5]
[338227019,1726396041627,-500.0,0.00027397,5]
[338227020,1726396041651,-500.0,0.00027397,5]
[338227021,1726396041675,-500.0,0.00027397,5]
[338227022,1726396041698,-500.0,0.00027397,5]
[338227023,1726396041720,-501.27149116,0.00027397,5]
[338227024,1726396041747,-500.0,0.00027397,5]
[338227025,1726396041789,-1302.0,0.00027397,5]
[338227026,1726396041811,-504.48046982,0.00027397,5]
[338227027,1726396041833,-500.0,0.00027397,5]
[338227028,1726396041854,-500.0,0.00027397,5]
[338227029,1726396041877,-500.0,0.00027397,5]
[338227030,1726396041898,-1298.31,0.00027397,5]
[338227031,1726396041921,-228.88,0.00027397,5]
[338227032,1726396041943,-500.0,0.00027397,5]
[338227033,1726396041965,-500.0,0.00027397,5]
[338227034,1726396041986,-500.0,0.00027397,5]
[338227035,1726396042009,-500.0,0.00027397,5]
[338227036,1726396042034,-1629.5,0.00027397,5]
[338227037,1726396042058,-500.0,0.00027397,5]
[338227038,1726396042080,-500.0,0.00027397,5]
[338227039,1726396042105,-618.98,0.00027397,5]
[338227040,1726396042126,-763.22,0.00027397,5]
[338227041,1726396042148,-1618.82,0.00027397,5]
[338227042,1726396042171,-500.0,0.00027397,5]
[338227043,1726396042195,-500.0,0.00027397,5]
[338227044,1726396042219,-500.0,0.00027397,5]
[338227045,1726396042243,-500.0,0.00027397,5]
[338227046,1726396042276,-257.56897506,0.00027397,5]
[338227047,1726396042298,-500.0,0.00027397,5]
[338227048,1726396042319,-500.0,0.00027397,5]
[338227049,1726396042343,-500.0,0.00027397,5]
[338227050,1726396042365,-500.0,0.00027397,5]
[338227051,1726396042386,-600.2,0.00027397,5]
[338227052,1726396042408,-586.99,0.00027397,5]
[338227053,1726396042431,-500.0,0.00027397,5]
[338227054,1726396042453,-500.0,0.00027397,5]
[338227055,1726396042476,-500.0,0.00027397,5]
[338227056,1726396042512,-502.18226276,0.00027397,5]
[338227057,1726396042537,-798.05,0.00027397,5]
[338227058,1726396042885,-779.1,0.00027397,5]
[338227059,1726396042909,-500.0,0.00027397,5]
[338227060,1726396042932,-504.46124136,0.00027397,5]
[338227061,1726396042956,-500.0,0.00027397,5]
[338227062,1726396042980,-914.36,0.00027397,5]
[338227063,1726396043003,-502.13994409,0.00027397,5]
[338227064,1726396043033,-1311.82,0.00027397,5]
[338227065,1726396043057,-500.0,0.00027397,5]
[338227066,1726396043080,-636.94,0.00027397,5]
[338227067,1726396043103,-245.54126108,0.00027397,5]
[338227068,1726396043127,-2046.26,0.00027397,5]
[338227069,1726396043151,-4535.12,0.00027397,5]
[338227070,1726396043176,-500.0,0.00027397,5]
[338227071,1726396043201,-500.0,0.00027397,5]
[338227072,1726396043226,-500.0,0.00027397,5]
[338227073,1726396043250,-500.0,0.00027397,5]
[338227074,1726396043273,-500.0,0.00027397,5]
[338227075,1726396043296,-500.0,0.00027397,5]
[338227076,1726396043320,-665.93,0.00027397,5]
[338227077,1726396043345,-500.0,0.00027397,5]
[338227078,1726396043366,-500.0,0.00027397,5]
[338227079,1726396043391,-517.47,0.00027397,5]
[338227080,1726396043416,-850.2,0.00027397,5]
[338227081,1726396043441,-500.0,0.00027397,5]
[338227082,1726396043464,-2037.89,0.00027397,5]
[338227083,1726396043487,-500.0,0.00027397,5]
[338227084,1726396043512,-2663.68,0.00027397,5]
[338227085,1726396043545,-500.0,0.00027397,5]
[338227086,1726396043567,-500.0,0.00027397,5]
[338227087,1726396043589,-500.0,0.00027397,5]
[338227088,1726396043612,-500.0,0.00027397,5]
[338227089,1726396043635,-608.58,0.00027397,5]
[338227090,1726396043657,-500.0,0.00027397,5]
[338227091,1726396043681,-500.0,0.00027397,5]
[338227092,1726396043704,-1339.23,0.00027397,5]
[338227093,1726396043729,-1518.09,0.00027397,5]
[338227094,1726396043758,-500.0,0.00027397,5]
[338227095,1726396043785,-500.0,0.00027397,5]
[338227096,1726396043810,-504.7844303,0.00027397,5]
[338227097,1726396043835,-504.04018527,0.00027397,5]
[338227098,1726396043860,-775.1,0.00027397,5]
[338227099,1726396043884,-500.0,0.00027397,5]
[338227100,1726396043907,-500.0,0.00027397,5]
[338227101,1726396043931,-500.0,0.00027397,5]
[338227102,1726396043956,-869.76,0.00027397,5]
[338227103,1726396043980,-500.0,0.00027397,5]
[338227104,1726396044006,-500.0,0.00027397,5]
[338227105,1726396044038,-1749.49,0.00027397,5]
[338227106,1726396044062,-500.0,0.00027397,5]
[338227107,1726396044086,-500.0,0.00027397,5]
[338227108,1726396044108,-500.0,0.00027397,5]
[338227109,1726396044134,-500.0,0.00027397,5]
[338227110,1726396044158,-2827.97,0.00027397,5]
[338227111,1726396044181,-500.0,0.00027397,5]
[338227112,1726396044203,-500.0,0.00027397,5]
[338227113,1726396044231,-791.62,0.00027397,5]
[338227114,1726396044258,-500.0,0.00027397,5]
[338227115,1726396044283,-500.0,0.00027397,5]
[338227116,1726396044306,-151.0,0.00027397,7]
[338227117,1726396044329,-6414.71,0.00027397,5]
[338227118,1726396044356,-689.53,0.00027397,5]
[338227119,1726396044381,-580.49,0.00027397,5]
[338227120,1726396044406,-546.48,0.00027397,5]
[338227121,1726396044431,-500.0,0.00027397,5]
[338227122,1726396044453,-501.72614037,0.00027397,5]
[338227123,1726396044476,-1672.39,0.00027397,5]
[338227124,1726396044502,-1790.2,0.00027397,5]
[338227125,1726396044526,-500.0,0.00027397,5]
[338227126,1726396044549,-500.0,0.00027397,5]
[338227127,1726396044571,-500.0,0.00027397,5]
[338227128,1726396044593,-500.0,0.00027397,5]
[338227129,1726396044616,-500.0,0.00027397,5]
[338227130,1726396044641,-563.65,0.00027397,5]
[338227131,1726396044666,-3852.19,0.00027397,5]
[338227132,1726396044690,-500.0,0.00027397,5]
[338227133,1726396044715,-500.0,0.00027397,5]
[338227134,1726396044738,-500.0,0.00027397,5]
[338227135,1726396044761,-500.0,0.00027397,5]
[338227136,1726396044785,-500.0,0.00027397,5]
[338227137,1726396044807,-1470.21,0.00027397,5]
[338227138,1726396044832,-500.0,0.00027397,5]
[338227139,1726396044855,-3270.8,0.00027397,5]
[338227140,1726396044877,-500.0,0.00027397,5]
[338227141,1726396044900,-502.14352306,0.00027397,5]
[338227142,1726396044926,-500.0,0.00027397,5]
[338227143,1726396044951,-500.0,0.00027397,5]
[338227144,1726396044974,-500.0,0.00027397,5]
[338227145,1726396044998,-500.0,0.00027397,5]
[338227146,1726396045021,-500.0,0.00027397,5]
[338227147,1726396045043,-1632.81,0.00027397,5]
[338227148,1726396045066,-500.0,0.00027397,5]
[338227149,1726396045090,-500.0,0.00027397,5]
[338227150,1726396045115,-1000.0,0.00027397,5]
[338227151,1726396045138,-503.10638437,0.00027397,5]
[338227152,1726396045160,-1078.25,0.00027397,5]
[338227153,1726396045181,-500.0,0.00027397,5]
[338227154,1726396045203,-500.0,0.00027397,5]
[338227155,1726396045229,-721.54,0.00027397,5]
[338227156,1726396045252,-500.0,0.00027397,5]
[338227157,1726396045274,-202.91452243,0.00027397,5]
[338227158,1726396045295,-1923.84,0.00027397,5]
[338227159,1726396045318,-500.0,0.00027397,5]
[338227160,1726396045343,-500.0,0.00027397,5]
[338227161,1726396045364,-500.0,0.00027397,5]
[338227162,1726396045385,-439.08394631,0.00027397,5]
[338227163,1726396045407,-500.85500098,0.00027397,5]
[338227164,1726396045439,-1795.05,0.00027397,5]
[338227165,1726396045460,-500.0,0.00027397,5]
[338227166,1726396045482,-2417.36,0.00027397,5]
[338227167,1726396045504,-500.0,0.00027397,5]
[338227168,1726396045526,-500.0,0.00027397,5]
[338227169,1726396045548,-500.0,0.00027397,5]
[338227170,1726396045570,-500.0,0.00027397,5]
[338227171,1726396045590,-2722.7,0.00027397,5]
[338227172,1726396045612,-895.87,0.00027397,5]
[338227173,1726396045634,-500.0,0.00027397,5]
[338227174,1726396045655,-4552.34,0.00027397,5]
[338227175,1726396045676,-296.11805495,0.00027397,5]
[338227176,1726396045697,-584.15,0.00027397,5]
[338227177,1726396045719,-542.8,0.00027397,5]
[338227178,1726396045741,-503.08,0.00027397,5]
[338227179,1726396045763,-500.0,0.00027397,5]
[338227180,1726396045785,-500.0,0.00027397,5]
[338227181,1726396045806,-503.35491974,0.00027397,5]
[338227182,1726396045827,-1646.05,0.00027397,5]
[338227183,1726396045848,-568.88,0.00027397,5]
[338227184,1726396045869,-500.0,0.00027397,5]
[338227185,1726396045891,-1351.98,0.00027397,5]
[338227186,1726396045913,-777.49,0.00027397,5]
[338227187,1726396045935,-500.0,0.00027397,5]
[338227188,1726396045956,-901.71,0.00027397,5]
[338227189,1726396045977,-1003.97,0.00027397,5]
[338227190,1726396046000,-749.33,0.00027397,5]
[338227191,1726396046021,-500.0,0.00027397,5]
[338227192,1726396046042,-789.13,0.00027397,5]
[338227193,1726396046064,-543.43837147,0.00027397,2]
[338227194,1726396046086,-503.60494731,0.00027397,5]
[338227195,1726396046108,-501.98169829,0.00027397,5]
[338227196,1726396046129,-500.0,0.00027397,5]
[338227197,1726396046151,-3548.26,0.00027397,5]
[338227198,1726396046172,-500.0,0.00027397,5]
[338227199,1726396046194,-500.0,0.00027397,5]
[338227200,1726396046216,-1168.55,0.00027397,2]
[338227201,1726396046238,-500.0,0.00027397,5]
[338227202,1726396046260,-500.0,0.00027397,5]
[338227203,1726396046281,-499.14566165,0.00027397,5]
[338227204,1726396046302,-527.66,0.00027397,5]
[338227205,1726396046324,-500.0,0.00027397,5]
[338227206,1726396046352,-500.0,0.00027397,5]
[338227207,1726396046378,-1054.51,0.00027397,5]
[338227208,1726396046402,-516.78612874,0.00027397,5]
[338227209,1726396046427,-500.0,0.00027397,2]
[338227210,1726396046450,-500.0,0.00027397,5]
[338227211,1726396046473,-500.0,0.00027397,2]
[338227212,1726396046495,-606.76,0.00027397,5]
[338227213,1726396046519,-3508.34,0.00027397,5]
[338227214,1726396046542,-500.0,0.00027397,5]
[338227215,1726396046564,-957.4,0.00027397,5]
[338227216,1726396046586,-500.0,0.00027397,5]
[338227217,1726396046607,-151.0,0.00027397,7]
[338227218,1726396046630,-151.0,0.00027397,7]
[338227219,1726396046653,-500.0,0.00027397,5]
[338227220,1726396046675,-500.0,0.00027397,5]
[338227221,1726396046697,-500.0,0.00027397,5]
[338227222,1726396046720,-1031.75,0.00027397,5]
[338227223,1726396046743,-500.0,0.00027397,5]
[338227224,1726396046765,-500.0,0.00027397,5]
[338227225,1726396046788,-500.0,0.00027397,5]
[338227226,1726396046809,-500.0,0.00027397,5]
[338227227,1726396046833,-500.0,0.00027397,5]
[338227228,1726396046855,-1206.13,0.00027397,5]
[338227229,1726396046877,-500.0,0.00027397,5]
[338227230,1726396046900,-500.0,0.00027397,5]
[338227231,1726396046923,-500.0,0.00027397,5]
[338227232,1726396046946,-500.0,0.00027397,5]
[338227233,1726396046969,-500.0,0.00027397,5]
[338227234,1726396046992,-500.0,0.00027397,5]
[338227235,1726396047015,-500.0,0.00027397,5]
[338227236,1726396047038,-793.79,0.00027397,5]
[338227237,1726396047259,-500.0,0.00027397,5]
[338227238,1726396047282,-502.13,0.00027397,5]
[338227239,1726396047306,-500.0,0.00027397,5]
[338227240,1726396047328,-500.0,0.00027397,5]
[338227241,1726396047355,-1210.9,0.00027397,5]
[338227242,1726396047377,-503.75513047,0.00027397,5]
[338227243,1726396047399,-673.28,0.00027397,5]
[338227244,1726396047422,-500.0,0.00027397,5]
[338227245,1726396047445,-500.0,0.00027397,5]
[338227246,1726396047468,-564.09,0.00027397,5]
[338227247,1726396047490,-1513.66,0.00027397,5]
[338227248,1726396047514,-2199.65,0.00027397,5]
[338227249,1726396047537,-507.61399502,0.00027397,5]
[338227250,1726396047559,-500.0,0.00027397,5]
[338227251,1726396047581,-188.94244823,0.00027397,5]
[338227252,1726396047603,-505.95135139,0.00027397,5]
[338227253,1726396047625,-500.0,0.00027397,5]
[338227254,1726396047647,-500.0,0.00027397,5]
[338227255,1726396047668,-500.0,0.00027397,5]
[338227256,1726396047688,-907.74,0.00027397,5]
[338227257,1726396047711,-846.7,0.00027397,5]
[338227258,1726396047733,-759.89,0.00027397,5]
[338227259,1726396047755,-500.0,0.00027397,5]
[338227260,1726396047778,-500.0,0.00027397,5]
[338227261,1726396047801,-645.59,0.00027397,5]
[338227262,1726396047823,-740.81,0.00027397,5]
[338227263,1726396047847,-500.0,0.00027397,5]
[338227264,1726396047870,-500.0,0.00027397,5]
[338227265,1726396047891,-500.0,0.00027397,5]
[338227266,1726396047914,-500.0,0.00027397,5]
[338227267,1726396047937,-1170.51,0.00027397,5]
[338227268,1726396047960,-282.000295,0.00027397,7]
[338227269,1726396047983,-500.0,0.00027397,5]
[338227270,1726396048006,-813.29,0.00027397,5]
[338227271,1726396048030,-500.0,0.00027397,5]
[338227272,1726396048052,-501.67689168,0.00027397,5]
[338227273,1726396048075,-500.0,0.00027397,5]
[338227274,1726396048097,-504.01641916,0.00027397,5]
[338227275,1726396048123,-500.0,0.00027397,5]
[338227276,1726396048148,-500.0,0.00027397,120]
[338227277,1726396048171,-500.0,0.00027397,5]
[338227278,1726396048194,-689.62,0.00027397,5]
[338227279,1726396048216,-500.0,0.00027397,5]
[338227280,1726396048238,-500.0,0.00027397,5]
[338227281,1726396048260,-673.68,0.00027397,5]
[338227282,1726396048285,-2186.5,0.00027397,5]
[338227283,1726396048305,-500.0,0.00027397,5]
[338227284,1726396048327,-500.0,0.00027397,5]
[338227285,1726396048354,-500.0,0.00027397,5]
[338227286,1726396048375,-500.0,0.00027397,5]
[338227287,1726396048400,-500.0,0.00027397,5]
[338227288,1726396048423,-815.43,0.00027397,5]
[338227289,1726396048445,-500.0,0.00027397,5]
[338227290,1726396048467,-1130.08,0.00027397,5]
[338227291,1726396048489,-500.0,0.00027397,5]
[338227292,1726396048512,-500.0,0.00027397,5]
[338227293,1726396048537,-763.24,0.00027397,5]
[338227294,1726396048560,-500.0,0.00027397,5]
[338227295,1726396048582,-817.77,0.00027397,5]
[338227296,1726396048604,-500.0,0.00027397,5]
[338227297,1726396048627,-500.0,0.00027397,5]
[338227298,1726396048649,-500.0,0.00027397,5]
[338227299,1726396048674,-500.0,0.00027397,5]
[338227300,1726396048698,-500.0,0.00027397,5]
[338227301,1726396048719,-500.0,0.00027397,5]
[338227302,1726396048741,-500.0,0.00027397,5]
[338227303,1726396048763,-500.0,0.00027397,5]
[338227304,1726396048788,-500.0,0.00027397,5]
[338227305,1726396048810,-500.0,0.00027397,5]
[338227306,1726396048833,-500.0,0.00027397,5]
[338227307,1726396048855,-500.0,0.00027397,5]
[338227308,1726396048877,-500.0,0.00027397,5]
[338227309,1726396048901,-381.48499014,0.00027397,5]
[338227310,1726396048924,-505.3132136,0.00027397,5]
[338227311,1726396048947,-500.0,0.00027397,5]
[338227312,1726396048972,-500.0,0.00027397,5]
[338227313,1726396048996,-1133.1,0.00027397,5]
[338227314,1726396049021,-911.09,0.00027397,5]
[338227315,1726396049043,-500.0,0.00027397,5]
[338227316,1726396049067,-1174.98,0.00027397,5]
[338227317,1726396049089,-392.04099443,0.00027397,5]
[338227318,1726396049113,-500.0,0.00027397,5]
[338227319,1726396049136,-518.52633962,0.00027397,5]
[338227320,1726396049161,-151.0,0.00027397,7]
[338227321,1726396049184,-151.0,0.00027397,7]
[338227322,1726396049209,-151.0,0.00027397,7]
[338227323,1726396049231,-151.0,0.00027397,7]
[338227324,1726396049253,-151.0,0.00027397,7]
[338227325,1726396049278,-151.0,0.00027397,7]
[338227326,1726396049300,-151.0,0.00027397,7]
[338227327,1726396049322,-595.37004629,0.00027397,5]
[338227328,1726396049349,-151.0,0.00027397,7]
[338227329,1726396049371,-151.0,0.00027397,7]
[338227330,1726396049394,-500.0,0.00027397,5]
[338227331,1726396049417,-301.244298,0.00027397,7]
[338227332,1726396049439,-502.21930332,0.00027397,5]
[338227333,1726396049462,-500.0,0.00027397,5]
[338227334,1726396049484,-1105.61,0.00027397,5]
[338227335,1726396049507,-151.0,0.00027397,7]
[338227336,1726396049535,-500.0,0.00027397,5]
[338227337,1726396049557,-500.0,0.00027397,5]
[338227338,1726396049578,-1175.02,0.00027397,5]
[338227339,1726396049600,-500.0,0.00027397,2]
[338227340,1726396049622,-503.8837014,0.00027397,5]
[338227341,1726396049644,-500.0,0.00027397,5]
[338227342,1726396049666,-517.79,0.00027397,5]
[338227343,1726396049688,-934.1,0.00027397,5]
[338227344,1726396049710,-2849.34,0.00027397,5]
[338227345,1726396049732,-500.0,0.00027397,5]
[338227346,1726396049756,-151.0,0.00027397,7]
[338227347,1726396049780,-151.0,0.00027397,7]
[338227348,1726396049802,-500.0,0.00027397,5]
[338227349,1726396049823,-500.0,0.00027397,5]
[338227350,1726396049845,-500.0,0.00027397,5]
[338227351,1726396049867,-500.0,0.00027397,5]
[338227352,1726396049891,-638.44,0.00027397,5]
[338227353,1726396049915,-708.16,0.00027397,5]
[338227354,1726396049940,-1659.66,0.00027397,5]
[338227355,1726396049965,-736.96,0.00027397,5]
[338227356,1726396049990,-1177.39,0.00027397,5]
[338227357,1726396050016,-8348.72723622,0.00027397,5]
[338227358,1726396051964,-875.97,0.00027387,3]
[338227359,1726396051986,-500.95475454,0.00027397,5]
[338227360,1726396052007,-500.0,0.00027397,5]
[338227361,1726396052028,-595.94,0.00027397,5]
[338227362,1726396052049,-500.0,0.00027397,5]
[338227363,1726396052071,-508.46,0.00027397,5]
[338227364,1726396052092,-500.0,0.00027397,5]
[338227365,1726396052114,-661.69,0.00027397,5]
[338227366,1726396052136,-509.67420445,0.00027397,5]
[338227367,1726396052161,-9333.76,0.00027397,5]
[338227368,1726396052184,-4210.23,0.00027397,5]
[338227369,1726396052207,-2504.37,0.00027397,5]
[338227370,1726396052230,-500.0,0.00027397,5]
[338227371,1726396052254,-500.0,0.00027397,5]
[338227372,1726396052281,-500.0,0.00027397,5]
[338227373,1726396052304,-503.65415218,0.00027397,5]
[338227374,1726396052325,-511.57,0.00027397,5]
[338227375,1726396052354,-709.04,0.00027397,5]
[338227376,1726396052378,-3970.63,0.00027397,5]
[338227377,1726396052400,-2067.03,0.00027397,5]
[338227378,1726396052427,-501.86704698,0.00027397,5]
[338227379,1726396052449,-1581.07,0.00027397,5]
[338227380,1726396052470,-600.45797364,0.00027397,5]
[338227381,1726396052495,-500.0,0.00027397,5]
[338227382,1726396052517,-1487.68,0.00027397,2]
[338227383,1726396052539,-617.6061408,0.00027397,5]
[338227384,1726396052560,-748.97,0.00027397,5]
[338227385,1726396052583,-500.0,0.00027397,5]
[338227386,1726396052605,-500.0,0.00027397,5]
[338227387,1726396052627,-2573.64,0.00027397,5]
[338227388,1726396052648,-1012.71,0.00027397,5]
[338227389,1726396052670,-500.0,0.00027397,5]
[338227390,1726396052691,-1938.91,0.00027397,5]
[338227391,1726396052714,-500.0,0.00027397,5]
[338227392,1726396052735,-1012.04493447,0.00027397,5]
[338227393,1726396052758,-500.0,0.00027397,5]
[338227394,1726396052779,-500.0,0.00027397,5]
[338227395,1726396052801,-500.0,0.00027397,5]
[338227396,1726396052825,-500.0,0.00027397,5]
[338227397,1726396052850,-500.0,0.00027397,5]
[338227398,1726396052874,-500.0,0.00027397,5]
[338227399,1726396052896,-661.13,0.00027397,5]
[338227400,1726396052917,-502.59672116,0.00027397,5]
[338227401,1726396052938,-2342.06,0.00027397,5]
[338227402,1726396052959,-500.0,0.00027397,5]
[338227403,1726396052983,-826.2,0.00027397,5]
[338227404,1726396053007,-524.61,0.00027397,5]
[338227405,1726396053035,-5079.27,0.00027397,5]
[338227406,1726396053057,-565.19853105,0.00027397,5]
[338227407,1726396053081,-9949.66,0.00027397,5]
[338227408,1726396053104,-9949.66,0.00027397,5]
[338227409,1726396053129,-9949.66,0.00027397,5]
[338227410,1726396053153,-9949.66,0.00027397,5]
[338227411,1726396053176,-8392.05009573,0.00027397,5]
[338227412,1726396053399,-1557.60990427,0.00027397,5]
[338227413,1726396053422,-9949.66,0.00027397,5]
[338227414,1726396053443,-500.0,0.00027397,5]
[338227415,1726396053467,-9949.66,0.00027397,5]
[338227416,1726396053491,-9949.66,0.00027397,5]
[338227417,1726396053518,-9949.66,0.00027397,5]
[338227418,1726396053543,-500.0,0.00027397,5]
[338227419,1726396053567,-9949.66,0.00027397,5]
[338227420,1726396053591,-9949.66,0.00027397,5]
[338227421,1726396053614,-502.03271641,0.00027397,5]
[338227422,1726396053636,-9949.66,0.00027397,5]
[338227423,1726396053662,-9949.66,0.00027397,5]
[338227424,1726396053685,-9949.66,0.00027397,5]
[338227425,1726396053709,-9949.66,0.00027397,5]
[338227426,1726396053737,-9949.66,0.00027397,5]
[338227427,1726396053759,-1707.24,0.00027397,5]
[338227428,1726396053783,-7341.24,0.00027397,5]
[338227429,1726396053805,-500.0,0.00027397,5]
[338227430,1726396053827,-2157.95,0.00027397,5]
[338227431,1726396053853,-9949.66,0.00027397,5]
[338227432,1726396053876,-9949.66,0.00027397,5]
[338227433,1726396053898,-500.0,0.00027397,5]
[338227434,1726396053921,-9949.66,0.00027397,5]
[338227435,1726396053945,-9949.66,0.00027397,5]
[338227436,1726396053973,-9949.66,0.00027397,5]
[338227437,1726396053996,-9949.66,0.00027397,5]
[338227438,1726396054025,-9949.66,0.00027397,5]
[338227439,1726396054049,-500.0,0.00027397,5]
[338227440,1726396054072,-9949.85901579,0.00027397,5]
[338227441,1726396054100,-1099.77,0.00027397,5]
[338227442,1726396054124,-1339.4,0.00027397,5]
[338227443,1726396054147,-500.0,0.00027397,5]
[338227444,1726396054174,-428.29147236,0.00027397,5]
[338227445,1726396054197,-500.0,0.00027397,2]
[338227446,1726396054220,-500.0,0.00027397,5]
[338227447,1726396054245,-831.1,0.00027397,5]
[338227448,1726396054276,-151.0,0.00027397,7]
[338227449,1726396054300,-151.0,0.00027397,7]
[338227450,1726396054323,-1848.26,0.00027397,5]
[338227451,1726396054350,-500.0,0.00027397,5]
[338227452,1726396054373,-151.0,0.00027397,7]
[338227453,1726396054397,-500.0,0.00027397,5]
[338227454,1726396054422,-151.0,0.00027397,7]
[338227455,1726396054446,-151.0,0.00027397,7]
[338227456,1726396054469,-151.0,0.00027397,7]
[338227457,1726396054492,-245.920635,0.00027397,7]
[338227458,1726396054517,-523.1304693,0.00027397,5]
[338227459,1726396054539,-500.0,0.00027397,5]
[338227460,1726396054564,-502.03853674,0.00027397,5]
[338227461,1726396054587,-500.0,0.00027397,5]
[338227462,1726396054610,-3455.06,0.00027397,5]
[338227463,1726396054633,-500.0,0.00027397,5]
[338227464,1726396054655,-500.0,0.00027397,5]
[338227465,1726396054677,-5215.55,0.00027397,5]
[338227466,1726396054700,-500.0,0.00027397,5]
[338227467,1726396054722,-500.0,0.00027397,5]
[338227468,1726396054743,-500.0,0.00027397,5]
[338227469,1726396054766,-500.0,0.00027397,5]
[338227470,1726396054799,-500.0,0.00027397,5]
[338227471,1726396054820,-500.0,0.00027397,5]